bitfinex-derivatives/quotes_SOLF0:USTF0_20220110
["timestamp","ask_amount","ask_price","bid_price","bid_amount"]
[1641779855932,8.04440049,140.29,140.28,15.04792612]
[1641779856134,8.04440049,140.29,140.25,27.66479]
[1641779856433,4.0,140.26,140.25,27.66479]
[1641779858242,4.0,140.26,140.25,30.65230188]
[1641779860145,4.0,140.28,140.25,30.65230188]
[1641779860346,27.66479,140.31,140.25,46.08185411]
[1641779860546,5.782,140.34,140.26,2.98751188]
[1641779860745,4.0,140.28,140.26,2.98751188]
[1641779860946,4.04443428,140.33,140.26,2.98751188]
[1641779861447,4.0,140.28,140.26,2.98751188]
[1641779862951,35.2354,140.32,140.26,2.98751188]
[1641779863150,4.0,140.34,140.26,2.98751188]
[1641779863351,4.0,140.34,140.26,30.65230188]
[1641779863550,4.04447579,140.33,140.26,30.65230188]
[1641779863849,4.04447579,140.33,140.27,2.98751188]
[1641779868859,4.0,140.28,140.27,2.98751188]
[1641779872563,4.0,140.28,140.26,2.98751188]
[1641779872762,4.0,140.3,140.26,2.98751188]
[1641779872961,4.0,140.3,140.27,2.98751188]
[1641779873163,4.0,140.28,140.27,2.98751188]
[1641779873362,4.0,140.28,140.25,28.09394906]
[1641779873763,31.66479,140.31,140.26,2.98751188]
[1641779873963,4.0,140.27,140.26,2.98751188]
[1641779876165,4.0,140.27,140.25,2.98751188]
[1641779876366,4.0,140.26,140.25,2.98751188]
[1641779876568,4.0,140.26,140.24,42.71271612]
[1641779877269,4.0,140.26,140.25,15.04792612]
[1641779878870,4.0,140.26,140.24,27.66479]
[1641779879770,4.0,140.28,140.24,27.66479]
[1641779880369,4.0,140.25,140.24,27.66479]
[1641779883574,4.0,140.25,140.23,15.04792612]
[1641779884171,31.66479,140.27,140.23,15.04792612]
[1641779884572,4.0,140.24,140.22,25.11225075]
[1641779884773,4.0,140.23,140.22,25.11225075]
[1641779885375,4.0,140.23,140.21,25.11225075]
[1641779885774,4.0,140.22,140.21,25.11225075]
[1641779886174,4.0,140.22,140.2,62.95179]
[1641779886574,4.0,140.22,140.2,27.66479]
[1641779886877,41.2432,140.26,140.2,27.66479]
[1641779887275,4.0,140.22,140.2,27.66479]
[1641779887475,4.0,140.22,140.21,10.06432463]
[1641779887675,4.0,140.22,140.21,19.52132463]
[1641779889079,4.0,140.22,140.21,9.457]
[1641779889277,4.0,140.22,140.19,10.06432463]
[1641779890278,4.0,140.25,140.19,10.06432463]
[1641779890478,4.0,140.2,140.19,19.25832463]
[1641779891781,4.0,140.2,140.19,9.194]
[1641779891981,4.0,140.2,140.19,2.98819975]
[1641779895385,4.0,140.2,140.19,5.4987914]
[1641779896687,37.2432,140.26,140.19,5.4987914]
[1641779896886,35.4612,140.26,140.2,1.782]
[1641779897086,4.0,140.24,140.2,1.782]
[1641779897287,4.0,140.24,140.21,2.98819975]
[1641779897687,4.0,140.24,140.21,5.4987914]
[1641779897987,4.0,140.28,140.21,5.4987914]
[1641779898187,4.0,140.28,140.21,65.7265814]
[1641779898188,4.0,140.23,140.21,65.7265814]
[1641779898388,4.0,140.23,140.22,2.98819975]
[1641779898589,4.0,140.23,140.22,5.4987914]
[1641779898790,4.0,140.23,140.22,13.9917914]
[1641779899392,4.0,140.23,140.22,24.05611603]
[1641779900195,4.0,140.23,140.22,13.9917914]
[1641779900795,4.0,140.23,140.22,15.7737914]
[1641779901804,4.0,140.23,140.22,25.83811603]
[1641779902999,4.0,140.23,140.22,24.05611603]
[1641779904804,4.0,140.23,140.22,25.83811603]
[1641779906705,4.0,140.23,140.22,53.50290603]
[1641779907110,4.0,140.23,140.22,43.4385814]
[1641779907708,4.0,140.23,140.22,53.50290603]
[1641779908810,4.0,140.23,140.22,25.83811603]
[1641779909410,4.0,140.23,140.22,51.72090603]
[1641779910412,4.0,140.23,140.22,25.83811603]
[1641779910612,4.0,140.23,140.22,24.05611603]
[1641779911014,4.0,140.23,140.22,29.12853671]
[1641779914018,4.0,140.23,140.22,13.9917914]
[1641779914820,4.0,140.23,140.22,29.12853671]
[1641779915518,4.0,140.23,140.22,13.9917914]
[1641779917020,8.0,140.23,140.21,15.13674531]
[1641779917219,4.0,140.22,140.21,15.13674531]
[1641779917421,35.66479,140.22,140.21,4.531e-05]
[1641779917620,35.66479,140.22,140.18,65.4033768]
[1641779917820,4.0,140.2,140.16,40.22209521]
[1641779918421,4.0,140.17,140.16,40.22209521]
[1641779918621,4.0,140.17,140.15,40.22209521]
[1641779919023,4.0,140.18,140.15,40.22209521]
[1641779920923,4.0,140.16,140.14,57.41730728]
[1641779921125,27.66479,140.19,140.14,57.41730728]
[1641779921324,27.66479,140.19,140.14,64.91430728]
[1641779921524,4.0,140.17,140.14,66.69630728]
[1641779921726,27.66479,140.19,140.14,64.91430728]
[1641779921925,4.0,140.18,140.14,64.91430728]
[1641779922626,4.0,140.17,140.14,80.03126424]
[1641779922825,27.66479,140.19,140.14,81.81326424]
[1641779923325,4.0,140.17,140.14,81.81326424]
[1641779923525,4.0,140.18,140.14,81.81326424]
[1641779923728,4.0,140.18,140.15,40.22209521]
[1641779924326,4.0,140.18,140.14,74.31626424]
[1641779925629,34.9822,140.21,140.14,74.31626424]
[1641779925829,34.9822,140.21,140.14,82.91926424]
[1641779926132,4.0,140.18,140.14,82.91926424]
[1641779927433,4.0,140.18,140.15,1.782]
[1641779927632,34.9822,140.21,140.15,29.44679]
[1641779927832,4.0,140.2,140.15,35.15481807]
[1641779928032,4.0,140.22,140.15,35.15481807]
[1641779928233,4.0,140.22,140.18,7.12910815]
[1641779928435,4.0,140.22,140.19,1.782]
[1641779928832,4.0,140.26,140.19,1.782]
[1641779929133,4.0,140.26,140.18,59.87404974]
[1641779929332,4.04582391,140.25,140.19,1.782]
[1641779929533,4.04582391,140.25,140.19,29.44679]
[1641779930237,4.0,140.26,140.19,29.44679]
[1641779930432,5.782,140.26,140.19,27.66479]
[1641779930634,5.782,140.26,140.2,10.06432463]
[1641779931333,5.782,140.26,140.19,37.72911463]
[1641779931933,4.04580613,140.25,140.19,37.72911463]
[1641779932135,4.0,140.22,140.19,37.72911463]
[1641779932335,4.04580613,140.25,140.2,14.61557211]
[1641779932536,8.04580613,140.25,140.2,22.11257211]
[1641779932936,4.0,140.26,140.2,22.11257211]
[1641779933135,4.0,140.26,140.22,5.70511775]
[1641779933335,4.0,140.26,140.23,1.782]
[1641779933535,4.0,140.26,140.24,27.66479]
[1641779933736,4.0,140.25,140.24,27.66479]
[1641779934136,4.0,140.25,140.24,30.02437388]
[1641779934337,4.0,140.26,140.24,30.02437388]
[1641779934537,4.0,140.26,140.24,31.80637388]
[1641779935038,4.0,140.26,140.25,2.35958388]
[1641779936238,4.0,140.26,140.25,12.40341108]
[1641779938643,33.44679,140.32,140.25,2.35958388]
[1641779938841,31.66479,140.32,140.25,2.35958388]
[1641779939041,4.0,140.27,140.25,2.35958388]
[1641779939242,4.04450176,140.31,140.25,2.35958388]
[1641779939441,36.5342,140.33,140.25,2.35958388]
[1641779939442,4.0,140.28,140.25,2.35958388]
[1641779940046,4.0,140.28,140.25,12.39404028]
[1641779940744,34.7522,140.33,140.26,1.782]
[1641779940943,4.0,140.3,140.26,11.59958388]
[1641779941144,4.0,140.32,140.27,12.82719392]
[1641779941346,4.0,140.32,140.28,1.78]
[1641779941547,4.0,140.38,140.28,1.78]
[1641779941845,27.66479,140.37,140.29,2.35958388]
[1641779942047,27.66479,140.37,140.3,1.78]
[1641779942346,31.70811019,140.37,140.3,1.78]
[1641779942747,4.04332019,140.36,140.31,2.35958388]
[1641779944647,4.0,140.33,140.31,2.35958388]
[1641779945847,4.0,140.33,140.31,30.02437388]
[1641779946648,4.0,140.33,140.32,2.35958388]
[1641779947950,8.04365846,140.33,140.3,2.35958388]
[1641779948151,4.0,140.31,140.3,2.35958388]
[1641779948352,4.0,140.31,140.28,29.44479]
[1641779952459,4.0,140.31,140.28,40.14479]
[1641779953659,4.0,140.29,140.28,29.44479]
[1641779953859,4.0,140.29,140.26,32.7959]
[1641779954059,34.59879,140.3,140.26,32.7959]
[1641779954461,4.0,140.28,140.26,32.7959]
[1641779954663,4.0,140.28,140.24,1.782]
[1641779955466,34.59879,140.3,140.24,16.8095051]
[1641779956065,4.0,140.26,140.24,16.8095051]
[1641779956264,13.364,140.27,140.23,33.66679878]
[1641779956464,9.364,140.27,140.23,33.66679878]
[1641779956666,4.0,140.24,140.23,25.0393763]
[1641779956867,10.488,140.24,140.23,25.0393763]
[1641779957865,10.488,140.24,140.22,15.0275051]
[1641779958067,10.488,140.24,140.23,2.5034572]
[1641779959082,10.488,140.24,140.22,15.0275051]
[1641779959874,4.0,140.24,140.22,15.0275051]
[1641779960075,4.0,140.24,140.21,17.5309623]
[1641779960473,33.44679,140.3,140.21,17.5309623]
[1641779960674,4.0,140.25,140.21,25.1209623]
[1641779960875,4.0,140.25,140.22,15.0275051]
[1641779961573,4.0,140.25,140.24,15.0275051]
[1641779963476,4.0,140.25,140.24,17.38727362]
[1641779964678,4.0,140.25,140.24,19.89073082]
[1641779966883,4.0,140.25,140.24,4.86322572]
[1641779968283,4.0,140.25,140.24,11.17722572]
[1641779968883,27.66479,140.3,140.24,11.17722572]
[1641779969484,27.66479,140.3,140.25,2.35976852]
[1641779970182,27.66479,140.3,140.26,2.5034572]
[1641779970683,27.66479,140.3,140.27,2.35976852]
[1641779970883,4.0,140.28,140.27,9.60676852]
[1641779971082,36.6595,140.31,140.27,9.60676852]
[1641779971083,34.8775,140.31,140.27,9.60676852]
[1641779971286,4.0,140.29,140.27,9.60676852]
[1641779971684,4.0,140.29,140.28,2.35976852]
[1641779971884,4.0,140.29,140.28,4.86322572]
[1641779974888,4.0,140.29,140.28,19.96267889]
[1641779979191,8.0,140.29,140.28,19.96267889]
[1641779979591,8.0,140.29,140.28,7.889e-05]
[1641779979791,8.0,140.29,140.24,40.22209521]
[1641779979992,4.0,140.25,140.23,40.22209521]
[1641779980193,4.0,140.27,140.23,47.34866305]
[1641779980391,4.0,140.27,140.23,55.43466305]
[1641779980594,4.0,140.31,140.23,55.43466305]
[1641779980893,4.0,140.26,140.24,1.86375055]
[1641779982091,40.3971,140.32,140.24,1.86375055]
[1641779982292,40.3971,140.32,140.24,37.91115055]
[1641779982492,4.0,140.27,140.24,37.91115055]
[1641779982693,4.0,140.27,140.24,1.86375055]
[1641779982892,4.0,140.26,140.24,1.86375055]
[1641779983591,40.3971,140.32,140.24,1.86375055]
[1641779983991,4.0,140.26,140.24,1.86375055]
[1641779984193,4.0,140.26,140.24,3.64575055]
[1641779984690,4.0,140.26,140.25,1.86375055]
[1641779985391,4.0,140.26,140.24,1.86375055]
[1641779985591,4.0,140.25,140.24,1.86375055]
[1641779985791,7.68,140.29,140.24,1.86375055]
[1641779985993,4.0,140.25,140.24,1.86375055]
[1641779986592,33.6038,140.28,140.24,1.86375055]
[1641779986793,4.0,140.26,140.24,1.86375055]
[1641779987693,36.006,140.29,140.24,1.86375055]
[1641779987897,4.0,140.25,140.24,1.86375055]
[1641779990699,36.006,140.29,140.24,1.86375055]
[1641779990899,4.0,140.26,140.24,1.86375055]
[1641779991699,36.006,140.29,140.24,1.86375055]
[1641779992002,4.0,140.26,140.24,1.86375055]
[1641779993202,43.056,140.29,140.24,1.86375055]
[1641779993804,4.0,140.26,140.24,1.86375055]
[1641779995905,36.006,140.29,140.24,1.86375055]
[1641779997908,4.0,140.25,140.24,1.86375055]
[1641779998107,4.0,140.26,140.24,1.86375055]
[1641780000612,36.006,140.29,140.24,1.86375055]
[1641780000810,4.0,140.27,140.24,1.86375055]
[1641780002613,36.006,140.29,140.24,1.86375055]
[1641780002813,4.0,140.28,140.25,7.12529837]
[1641780003013,27.66479,140.3,140.26,1.782]
[1641780003219,4.0,140.3,140.26,7.48558982]
[1641780003613,4.0,140.3,140.26,9.34934037]
[1641780003814,4.0,140.32,140.28,27.66479]
[1641780004014,4.0,140.32,140.29,1.78]
[1641780004413,4.0,140.32,140.3,1.86375055]
[1641780005215,27.66479,140.38,140.3,1.86375055]
[1641780005415,4.0,140.33,140.3,1.86375055]
[1641780005617,7.567,140.35,140.3,1.86375055]
[1641780005817,4.0,140.32,140.3,1.86375055]
[1641780006215,4.0,140.34,140.3,1.86375055]
[1641780006615,8.04321521,140.34,140.3,1.86375055]
[1641780006817,4.04321521,140.34,140.3,1.86375055]
[1641780007018,35.7072,140.37,140.3,1.86375055]
[1641780007217,35.7072,140.37,140.31,1.78]
[1641780007419,4.04319743,140.36,140.31,1.78]
[1641780007618,4.0,140.34,140.31,1.78]
[1641780007819,4.0,140.34,140.32,1.86375055]
[1641780008017,4.04319743,140.36,140.32,8.95875055]
[1641780008219,4.0,140.35,140.32,8.95875055]
[1641780008820,4.04311387,140.34,140.33,1.86375055]
[1641780010019,4.04311387,140.34,140.32,1.86375055]
[1641780011323,4.0,140.36,140.32,1.86375055]
[1641780011524,4.0,140.37,140.33,1.78]
[1641780011923,4.0,140.36,140.33,1.78]
[1641780012327,8.04253045,140.36,140.34,1.86375055]
[1641780012524,4.04253045,140.36,140.34,1.86375055]
[1641780012725,8.04253045,140.37,140.35,1.78]
[1641780013024,4.0,140.36,140.35,1.78]
[1641780013225,4.0,140.36,140.34,1.86375055]
[1641780013626,8.04259155,140.36,140.35,1.86375055]
[1641780013826,4.04259155,140.36,140.35,1.86375055]
[1641780014327,8.04259155,140.37,140.35,1.78]
[1641780014529,4.04259155,140.37,140.35,1.78]
[1641780014728,8.04259155,140.36,140.35,3.64375055]
[1641780015729,4.04259155,140.36,140.35,3.64375055]
[1641780015930,4.04259155,140.36,140.35,9.3436464]
[1641780016534,4.0,140.38,140.35,9.3436464]
[1641780016731,4.0,140.36,140.35,3.64375055]
[1641780016932,10.41,140.36,140.35,1.86375055]
[1641780017132,10.41,140.36,140.35,1.12135055]
[1641780017331,14.45269406,140.36,140.35,1.12135055]
[1641780017532,14.45269406,140.36,140.32,21.94348633]
[1641780017533,14.45269406,140.36,140.32,15.10226733]
[1641780017732,14.45269406,140.36,140.3,16.88226733]
[1641780017733,4.0,140.33,140.3,16.88226733]
[1641780018133,4.0,140.33,140.3,15.10226733]
[1641780018633,4.0,140.33,140.28,21.78]
[1641780018833,4.04376976,140.32,140.31,1.84445375]
[1641780019235,4.04376976,140.32,140.29,1.84445375]
[1641780019635,4.04376976,140.32,140.31,1.84445375]
[1641780020049,4.04376976,140.32,140.3,1.84445375]
[1641780020538,39.64186976,140.35,140.29,1.84445375]
[1641780020739,4.0,140.3,140.29,1.84445375]
[1641780021443,12.589,140.3,140.29,4.34863397]
[1641780022238,16.589,140.3,140.26,15.10226733]
[1641780022442,4.0,140.27,140.26,15.10226733]
[1641780022639,11.08,140.27,140.26,15.10226733]
[1641780023340,11.08,140.27,140.23,15.10226733]
[1641780023540,11.12512057,140.27,140.26,1.45461732]
[1641780023940,11.12512057,140.27,140.24,1.45461732]
[1641780024342,7.08,140.27,140.24,1.45461732]
[1641780024641,4.0,140.25,140.24,1.45461732]
[1641780027047,4.0,140.25,140.23,1.45461732]
[1641780028647,4.0,140.24,140.23,16.55688465]
[1641780029347,4.0,140.24,140.23,1.45461732]
[1641780029749,4.0,140.24,140.22,25.13155466]
[1641780030249,4.0,140.23,140.22,25.13155466]
[1641780030451,4.0,140.23,140.2,34.04164647]
[1641780030650,4.0,140.23,140.2,32.25964647]
[1641780030949,27.66479,140.25,140.2,32.25964647]
[1641780031151,4.0,140.21,140.2,32.25964647]
[1641780031352,4.0,140.21,140.2,7.12809181]
[1641780031554,4.0,140.21,140.2,8.91009181]
[1641780032151,4.0,140.21,140.2,1.782]
[1641780032351,4.0,140.21,140.19,15.10226733]
[1641780032553,4.0,140.2,140.19,15.10226733]
[1641780032753,11.124,140.2,140.19,15.10226733]
[1641780032955,15.124,140.2,140.17,25.13155466]
[1641780033154,11.124,140.2,140.17,25.13155466]
[1641780033456,15.1710537,140.2,140.17,25.13155466]
[1641780033655,4.0,140.18,140.17,10.83425466]
[1641780034058,8.0,140.18,140.14,47.35298265]
[1641780034256,4.0,140.15,140.14,47.35298265]
[1641780034456,29.44679,140.19,140.14,17.1428452]
[1641780034658,1.782,140.19,140.14,26.1378452]
[1641780034956,1.782,140.23,140.15,1.782]
[1641780035157,39.1208,140.24,140.15,37.2451]
[1641780035457,4.0,140.22,140.15,37.2451]
[1641780035757,4.0,140.17,140.15,1.782]
[1641780035957,9.82876278,140.21,140.14,17.1428452]
[1641780036156,4.0,140.17,140.14,44.8076352]
[1641780036356,4.0,140.17,140.14,34.79567744]
[1641780036559,4.04676278,140.2,140.14,7.13088744]
[1641780036763,4.0,140.17,140.14,7.13088744]
[1641780037160,4.0,140.15,140.14,7.13088744]
[1641780041565,29.44679,140.19,140.14,7.13088744]
[1641780041763,4.0,140.16,140.14,15.36088744]
[1641780042465,4.0,140.16,140.15,1.782]
[1641780042964,4.0,140.16,140.14,15.36088744]
[1641780043164,4.0,140.15,140.14,15.36088744]
[1641780043565,4.0,140.15,140.14,7.13088744]
[1641780045668,8.0,140.15,140.1,71.592712]
[1641780045868,8.0,140.15,140.1,69.810712]
[1641780046268,4.0,140.18,140.1,69.810712]
[1641780046468,1.782,140.17,140.1,69.810712]
[1641780046677,4.0,140.16,140.11,0.80956366]
[1641780046871,4.0,140.12,140.11,7.02756366]
[1641780047569,1.782,140.18,140.11,7.02756366]
[1641780048171,4.04776424,140.17,140.12,0.80956366]
[1641780048371,4.0,140.13,140.12,0.80956366]
[1641780048971,4.0,140.13,140.11,0.80956366]
[1641780050172,4.0,140.14,140.11,0.80956366]
[1641780050376,4.0,140.14,140.11,8.40356366]
[1641780050775,34.4918,140.17,140.11,8.40356366]
[1641780050976,4.0,140.13,140.12,0.80956366]
[1641780054482,4.0,140.13,140.11,10.82191388]
[1641780054883,4.0,140.13,140.12,0.80956366]
[1641780055985,4.0,140.19,140.12,0.80956366]
[1641780056186,4.0,140.19,140.12,35.82806366]
[1641780056584,4.04737884,140.18,140.13,0.80956366]
[1641780057185,4.0,140.14,140.13,10.82191388]
[1641780058086,5.784,140.2,140.13,10.82191388]
[1641780058287,4.0,140.2,140.13,17.98791388]
[1641780058688,4.04741605,140.19,140.14,0.80956366]
[1641780059088,4.0,140.15,140.14,0.80956366]
[1641780059290,4.0,140.16,140.14,2.59156366]
[1641780059988,4.0,140.16,140.15,0.80956366]
[1641780062591,4.0,140.16,140.14,0.80956366]
[1641780062994,4.0,140.16,140.15,2.51123059]
[1641780063496,4.0,140.16,140.15,3.32079425]
[1641780071706,33.3372,140.21,140.15,3.32079425]
[1641780072008,4.0,140.17,140.15,5.10279425]
[1641780072507,37.3372,140.21,140.16,0.80956366]
[1641780072706,4.0,140.18,140.16,18.47976564]
[1641780072906,4.04719278,140.2,140.16,38.47976564]
[1641780073105,4.04719278,140.2,140.18,27.66479]
[1641780073306,4.0,140.21,140.18,35.04379]
[1641780073506,4.04719278,140.23,140.2,7.12809181]
[1641780073706,4.04719278,140.23,140.21,1.782]
[1641780073906,42.82068864,140.26,140.21,10.741]
[1641780074307,4.04588602,140.25,140.22,0.80956366]
[1641780074907,4.0,140.23,140.22,18.47976564]
[1641780075108,8.0,140.23,140.22,18.47976564]
[1641780075308,4.0,140.23,140.22,18.47976564]
[1641780075708,8.04588602,140.23,140.22,18.47976564]
[1641780075909,8.04588602,140.23,140.22,3.32079425]
[1641780079615,31.66479,140.23,140.22,3.32079425]
[1641780080020,35.71090253,140.23,140.22,3.32079425]
[1641780080220,8.04611253,140.23,140.22,3.32079425]
[1641780081520,4.0,140.23,140.22,3.32079425]
[1641780083024,4.0,140.23,140.22,18.47976564]
[1641780083924,4.0,140.23,140.22,3.32079425]
[1641780085525,4.0,140.24,140.22,10.58179425]
[1641780085823,1.782,140.29,140.22,16.28696134]
[1641780086024,4.0,140.26,140.23,2.59156366]
[1641780086224,4.0,140.26,140.23,5.10279425]
[1641780086423,4.0,140.26,140.24,0.80956366]
[1641780086624,4.0,140.26,140.25,1.782]
[1641780087224,4.0,140.26,140.25,4.29323059]
[1641780087425,4.0,140.26,140.25,12.48879425]
[1641780087627,39.5672,140.32,140.25,10.70679425]
[1641780087826,4.0,140.26,140.25,10.70679425]
[1641780088026,4.0,140.26,140.25,12.48879425]
[1641780088726,4.0,140.29,140.25,12.48879425]
[1641780088926,4.0,140.27,140.25,12.48879425]
[1641780089126,4.0,140.27,140.26,0.80956366]
[1641780089527,4.0,140.27,140.26,3.32079425]
[1641780089729,4.0,140.27,140.26,30.98558425]
[1641780090029,4.0,140.27,140.26,3.32079425]
[1641780093834,4.0,140.27,140.26,0.80956366]
[1641780094234,4.0,140.27,140.25,0.80956366]
[1641780094435,4.0,140.31,140.25,0.80956366]
[1641780094635,4.0,140.26,140.25,0.80956366]
[1641780095437,4.0,140.26,140.25,3.30907697]
[1641780101845,4.0,140.26,140.25,30.97386697]
[1641780102345,4.0,140.27,140.25,30.97386697]
[1641780102546,33.7852,140.32,140.26,1.782]
[1641780102745,33.7852,140.32,140.26,43.25993432]
[1641780102948,4.0,140.27,140.26,43.25993432]
[1641780103152,4.0,140.27,140.26,32.67764925]
[1641780103350,4.0443551,140.31,140.26,32.67764925]
[1641780103549,27.66479,140.33,140.26,32.67764925]
[1641780103750,27.66479,140.33,140.28,27.66479]
[1641780103950,27.66479,140.33,140.28,34.01979]
[1641780104150,4.04419604,140.32,140.28,34.01979]
[1641780104353,4.0,140.3,140.28,34.01979]
[1641780104551,4.04419604,140.32,140.28,34.01979]
[1641780105454,4.0,140.29,140.28,34.01979]
[1641780105658,4.0,140.29,140.28,35.80179]
[1641780106055,35.1334,140.34,140.28,41.50449605]
[1641780106257,4.0,140.31,140.29,1.78]
[1641780106957,4.04419755,140.3,140.29,1.78]
[1641780107658,1.78,140.37,140.3,5.70182459]
[1641780107858,4.0,140.34,140.31,1.78]
[1641780108162,4.0,140.35,140.32,5.70104936]
[1641780108362,15.15589864,140.38,140.33,8.9012391]
[1641780108558,4.0,140.35,140.33,8.9012391]
[1641780108958,4.0,140.34,140.33,8.9012391]
[1641780109358,36.2579,140.39,140.33,8.9012391]
[1641780109560,4.0,140.35,140.33,8.9012391]
[1641780109860,4.0,140.35,140.33,36.5660291]
[1641780110259,4.0,140.34,140.33,36.5660291]
[1641780110458,4.0,140.34,140.33,34.7860291]
[1641780111261,4.0,140.34,140.33,7.1212391]
[1641780111862,4.0,140.34,140.33,34.7860291]
[1641780112063,4.0,140.36,140.33,34.7860291]
[1641780112262,4.0,140.35,140.33,34.7860291]
[1641780112463,4.0,140.37,140.33,34.7860291]
[1641780112665,4.0,140.37,140.33,7.1212391]
[1641780113067,4.0,140.34,140.33,7.1212391]
[1641780113272,9.78,140.34,140.31,21.31797139]
[1641780113469,8.0,140.32,140.31,21.31797139]
[1641780113867,8.0,140.32,140.31,6.159]
[1641780114067,8.0,140.32,140.28,15.15897139]
[1641780114268,4.0,140.3,140.29,7.12250712]
[1641780114670,4.0,140.3,140.27,52.8478139]
[1641780116372,4.0,140.28,140.27,52.8478139]
[1641780117871,4.0,140.28,140.27,27.66479]
[1641780118572,4.0,140.28,140.27,29.29308232]
[1641780118774,4.0,140.28,140.27,46.88909396]
[1641780119377,4.0,140.28,140.27,19.22430396]
[1641780119677,4.0,140.28,140.27,29.24835647]
[1641780120078,4.0,140.28,140.27,56.91314647]
[1641780120278,4.0,140.28,140.27,46.88909396]
[1641780120977,10.596,140.28,140.27,19.22430396]
[1641780121179,14.596,140.28,140.27,29.24835647]
[1641780121582,14.596,140.28,140.24,40.22209521]
[1641780121780,8.0,140.25,140.24,40.22209521]
[1641780121984,10.539,140.25,140.21,40.22209521]
[1641780122282,6.539,140.25,140.21,40.22209521]
[1641780122580,4.0,140.22,140.21,40.22209521]
[1641780122982,4.0,140.22,140.21,1.28776918]
[1641780123782,4.0,140.22,140.21,3.06976918]
[1641780124184,4.0,140.24,140.21,3.06976918]
[1641780124585,4.0,140.24,140.22,1.28776918]
[1641780124785,4.0,140.24,140.22,9.28176918]
[1641780125484,4.0,140.24,140.23,1.28776918]
[1641780126285,4.0,140.24,140.23,28.95255918]
[1641780126486,4.0,140.24,140.23,27.66479]
[1641780127084,4.0,140.24,140.23,28.95255918]
[1641780128385,4.0,140.24,140.23,37.52455918]
[1641780130188,4.0,140.25,140.23,37.52455918]
[1641780130388,4.0,140.25,140.24,1.782]
[1641780130788,4.0,140.25,140.24,3.06976918]
[1641780132587,4.0,140.25,140.24,1.28776918]
[1641780133590,4.0,140.28,140.24,1.28776918]
[1641780133789,4.0,140.28,140.26,7.12402935]
[1641780133991,4.0,140.35,140.27,1.782]
[1641780134191,4.0,140.35,140.29,27.66479]
[1641780134389,4.0,140.35,140.29,36.66779]
[1641780134691,4.04391186,140.34,140.3,1.28776918]
[1641780134889,4.0,140.31,140.3,1.28776918]
[1641780135490,5.78,140.37,140.3,1.28776918]
[1641780135691,33.44479,140.38,140.3,3.06776918]
[1641780135893,31.66479,140.38,140.3,3.06776918]
[1641780136092,4.04341508,140.37,140.31,1.28776918]
[1641780136291,4.04341508,140.37,140.32,1.78]
[1641780136491,4.0,140.33,140.32,8.194]
[1641780136893,5.78,140.39,140.32,9.48176918]
[1641780137093,4.0,140.36,140.32,9.48176918]
[1641780137293,4.0,140.37,140.33,1.28776918]
[1641780137497,4.04287296,140.38,140.34,1.78]
[1641780137702,4.0,140.39,140.35,5.69984624]
[1641780137893,4.0,140.42,140.36,1.78]
[1641780138094,4.0,140.38,140.36,1.78]
[1641780138295,4.0,140.38,140.37,27.66479]
[1641780138694,4.0,140.44,140.37,27.66479]
[1641780138893,4.0,140.39,140.37,27.66479]
[1641780139093,29.44479,140.46,140.37,28.95255918]
[1641780139094,4.0,140.38,140.37,28.95255918]
[1641780139295,4.0,140.38,140.37,1.28776918]
[1641780140495,4.0,140.38,140.36,1.28776918]
[1641780140795,4.0,140.37,140.36,1.28776918]
[1641780141695,4.0,140.39,140.36,1.28776918]
[1641780141996,4.0,140.39,140.36,9.11376918]